{"text_format":"3","workbook":"xlsx","n_sheets":2,"sheets":["Start","Klantwinstgevendheid"],"not_rendered":{"charts":1},"read":"whole","date_system":"1900"}

{"sheet":"Start","index":0,"n_rows":7,"n_cols":2,"rows_kept":7}
[null,"OVER DEZE SJABLOON"]
[null,"Gebruik deze klantwinstgevendsheidsanalyse om Klantactiviteit, verkoopkosten en andere overige kosten bij te houden."]
[null,"Vul gegevens in als bedrijfsnaam en datum, en vul de details in in tabellen."]
[null,"Waarden in cellen met formules en de tabel met samenvattingsmetrieken worden automatisch berekend en de grafiek wordt bijgewerkt."]
[null,"Opmerking:  "]
[null,"Kolom A van het werkblad KLANTWINSTGEVENDHEID bevat aanvullende instructies. Deze tekst is opzettelijk verborgen. Als u tekst wilt verwijderen, selecteert u kolom A en drukt u op Delete. Als u de tekst zichtbaar wilt maken, selecteert u kolom A en wijzigt u de tekenkleur."]
[null,"Als u meer wilt weten over tabellen in dit werkblad, drukt u in een tabel op Shift en F10 en selecteert u de optie Tabel en vervolgens Alternatieve tekst."]

{"sheet":"Klantwinstgevendheid","index":1,"n_rows":37,"n_cols":6,"rows_kept":37,"merged":[[36,1,36,5]]}
["Maak een klantwinstgevendheidsanalyse in dit werkblad. Cellen in deze kolom bevatten handige instructies voor het gebruik van dit werkblad. Druk op de pijl-omlaag om aan de slag te gaan."]
["Voer in de cel rechts de naam van het bedrijfsnaam in.","Bedrijfsnaam"]
["De titel van dit werkblad staat in de cel rechts.","Klantwinstgevendheidsanalyse"]
["Voer in de cel rechts de datum in.","Datum"]
["De tip staat in de cel rechts.","Grijze cellen worden voor u berekend. U hoeft ze niet in te vullen."]
["Voer gegevens in in de tabel Klantactiviteit die begint in de cel rechts. De volgende aanwijzing staat in cel A12.","Klantactiviteit:","Segmentnaam 1","Segmentnaam 2","Segmentnaam 3","Totaal"]
[null,"Aantal actieve klanten – begin periode",5,8,8,{"$f":"SUM(C7:E7)","v":21}]
[null,"Aantal klanten toegevoegd",2,4,4,{"$f":"SUM(C8:E8)","v":10}]
[null,"Aantal klanten verloren/beëindigd",{"v":-1,"d":"-1 "},{"v":-2,"d":"-2 "},{"v":-2,"d":"-2 "},{"$f":"SUM(C9:E9)","v":{"v":-5,"d":"-5 "}}]
[null,"Aantal actieve klanten – einde periode",{"$f":"SUBTOTAL(109,Klantactiviteit[Segmentnaam 1])","v":6},{"$f":"SUBTOTAL(109,Klantactiviteit[Segmentnaam 2])","v":10},{"$f":"SUBTOTAL(109,Klantactiviteit[Segmentnaam 3])","v":10},{"$f":"SUBTOTAL(109,Klantactiviteit[Totaal])","v":26}]
[]
["Voer de gegevens in in de tabel Winstgevendheidsanalyse die begint in de cel rechts. De volgende aanwijzing staat in cel A16.","Winstgevendheidsanalyse:","Segmentnaam 1","Segmentnaam 2","Segmentnaam 3","Totaal"]
[null,"Omzet per segment",{"v":1500000,"d":"€ 1,500,000.00"},{"v":1800000,"d":"€ 1,800,000.00"},{"v":2500000,"d":"€ 2,500,000.00"},{"$f":"SUM(Winstgevendsheidsanalyse[[#This Row],[Segmentnaam 1]:[Segmentnaam 3]])","v":{"v":5800000,"d":"€ 5,800,000.00"}}]
[null,"Gewicht",{"$f":"+C13/$F$13","v":{"v":0.25862068965517243,"d":"26%"}},{"$f":"+D13/$F$13","v":{"v":0.3103448275862069,"d":"31%"}},{"$f":"+E13/$F$13","v":{"v":0.43103448275862066,"d":"43%"}},{"$f":"SUM(Winstgevendsheidsanalyse[[#This Row],[Segmentnaam 1]:[Segmentnaam 3]])","v":{"v":1,"d":"100%"}}]
[]
["Voer de gegevens in in de tabel Verkoopkosten die begint in de cel rechts. De volgende aanwijzing staat in cel A23.","Verkoopkosten:","Segmentnaam 1","Segmentnaam 2","Segmentnaam 3","Totaal"]
[null,"Lopende service- en ondersteuningskosten",{"v":1000000,"d":"€ 1,000,000.00"},{"v":1400000,"d":"€ 1,400,000.00"},{"v":1400000,"d":"€ 1,400,000.00"},{"$f":"SUM(C17:E17)","v":{"v":3800000,"d":"€ 3,800,000.00"}}]
[null,"Overige directe klantkosten",{"v":200000,"d":"€ 200,000.00"},{"v":100000,"d":"€ 100,000.00"},{"v":100000,"d":"€ 100,000.00"},{"$f":"SUM(C18:E18)","v":{"v":400000,"d":"€ 400,000.00"}}]
[null,"Totale verkoopkosten",{"$f":"SUM(C17:C18)","v":{"v":1200000,"d":"€ 1,200,000.00"}},{"$f":"SUM(D17:D18)","v":{"v":1500000,"d":"€ 1,500,000.00"}},{"$f":"SUM(E17:E18)","v":{"v":1500000,"d":"€ 1,500,000.00"}},{"$f":"SUM(F17:F18)","v":{"v":4200000,"d":"€ 4,200,000.00"}}]
[null,"Brutomarge",{"$f":"+C13-C19","v":{"v":300000,"d":"€ 300,000.00"}},{"$f":"+D13-D19","v":{"v":300000,"d":"€ 300,000.00"}},{"$f":"+E13-E19","v":{"v":1000000,"d":"€ 1,000,000.00"}},{"$f":"+F13-F19","v":{"v":1600000,"d":"€ 1,600,000.00"}}]
[null,"Gewicht",{"$f":"MAX(0, MIN(1,C20/$F$20))","v":{"v":0.1875,"d":"19%"}},{"$f":"MAX(0, MIN(1,D20/$F$20))","v":{"v":0.1875,"d":"19%"}},{"$f":"MAX(0, MIN(1,E20/$F$20))","v":{"v":0.625,"d":"63%"}},{"$f":"SUM(C21:E21)","v":{"v":1,"d":"100%"}}]
[]
["Voer de gegevens in in de tabel OverigeKosten die begint in de cel rechts. De volgende aanwijzing staat in cel A31.","Overige kosten:","Segmentnaam 1","Segmentnaam 2","Segmentnaam 3","Totaal"]
[null,"Klantenwerving",{"v":105000,"d":"€ 105,000.00"},{"v":120000,"d":"€ 120,000.00"},{"v":235000,"d":"€ 235,000.00"},{"$f":"SUM(OverigeKosten[[#This Row],[Segmentnaam 1]:[Segmentnaam 3]])","v":{"v":460000,"d":"€ 460,000.00"}}]
[null,"Klantenmarketing",{"v":150000,"d":"€ 150,000.00"},{"v":125000,"d":"€ 125,000.00"},{"v":275000,"d":"€ 275,000.00"},{"$f":"SUM(C25:E25)","v":{"v":550000,"d":"€ 550,000.00"}}]
[null,"Klantenbeëindiging",{"v":80000,"d":"€ 80,000.00"},{"v":190000,"d":"€ 190,000.00"},{"v":140000,"d":"€ 140,000.00"},{"$f":"SUM(C26:E26)","v":{"v":410000,"d":"€ 410,000.00"}}]
[null,"Totale overige klantkosten",{"$f":"SUM(C24:C26)","v":{"v":335000,"d":"€ 335,000.00"}},{"$f":"SUM(D24:D26)","v":{"v":435000,"d":"€ 435,000.00"}},{"$f":"SUM(E24:E26)","v":{"v":650000,"d":"€ 650,000.00"}},{"$f":"SUM(F24:F26)","v":{"v":1420000,"d":"€ 1,420,000.00"}}]
[null,"Klantwinst per segment",{"$f":"+C20-C27","v":{"v":-35000,"d":"€ -35,000.00"}},{"$f":"+D20-D27","v":{"v":-135000,"d":"€ -135,000.00"}},{"$f":"+E20-E27","v":{"v":350000,"d":"€ 350,000.00"}},{"$f":"SUM(C28:E28)","v":{"v":180000,"d":"€ 180,000.00"}}]
[null,"Gewicht",{"$f":"MAX(0,MIN(1, C28/$F$28))","v":{"v":0,"d":"0%"}},{"$f":"MAX(0,MIN(1, D28/$F$28))","v":{"v":0,"d":"0%"}},{"$f":"MAX(0,MIN(1, E28/$F$28))","v":{"v":1,"d":"100%"}},{"$f":"SUM(C29:E29)","v":{"v":1,"d":"100%"}}]
[]
["De tabel Samenvattingsmetrieken die begint in de cel rechts wordt automatisch bijgewerkt. De volgende aanwijzing staat in cel A37.","Samenvattingsmetrieken:","Segmentnaam 1","Segmentnaam 2","Segmentnaam 3","Trend"]
[null,"Gemiddelde kosten per nieuwe klant",{"$f":"+C24/C8","v":{"v":52500,"d":"€ 52,500.00"}},{"$f":"+D24/D8","v":{"v":30000,"d":"€ 30,000.00"}},{"$f":"+E24/E8","v":{"v":58750,"d":"€ 58,750.00"}}]
[null,"Gemiddelde kosten per beëindigde klant",{"$f":"-C26/C9","v":{"v":80000,"d":"€ 80,000.00"}},{"$f":"-D26/D9","v":{"v":95000,"d":"€ 95,000.00"}},{"$f":"-E26/E9","v":{"v":70000,"d":"€ 70,000.00"}}]
[null,"Gemiddelde marketingkosten per actieve klant",{"$f":"+C26/Klantactiviteit[[#Totals],[Segmentnaam 1]]","v":{"v":13333.333333333334,"d":"€ 13,333.33"}},{"$f":"+D25/Klantactiviteit[[#Totals],[Segmentnaam 2]]","v":{"v":12500,"d":"€ 12,500.00"}},{"$f":"+E25/Klantactiviteit[[#Totals],[Segmentnaam 3]]","v":{"v":27500,"d":"€ 27,500.00"}}]
[null,"Gemiddelde winst/verlies per klant",{"$f":"+C29/Klantactiviteit[[#Totals],[Segmentnaam 1]]","v":{"v":0,"d":"€ 0.00"}},{"$f":"+D28/Klantactiviteit[[#Totals],[Segmentnaam 2]]","v":{"v":-13500,"d":"€ -13,500.00"}},{"$f":"+E28/Klantactiviteit[[#Totals],[Segmentnaam 3]]","v":{"v":35000,"d":"€ 35,000.00"}}]
[]
["Een gegroepeerd kolomdiagram met samenvattingsmetrieken per klantsegment staat in de cel rechts.","Een gegroepeerd kolomdiagram met samenvattingsmetrieken per klantsegment bevindt zich in deze cel."]